bitfinex-derivatives/quotes_BNBF0:USTF0_20250630
["timestamp","ask_amount","ask_price","bid_price","bid_amount"]
[1751243932606,0.26520044,656.8,656.18,1.1566582]
[1751243932906,0.26520044,656.8,656.19,1.1566582]
[1751243933202,0.26520044,656.8,656.2,1.1566582]
[1751243933405,0.26520044,656.8,656.2,0.622]
[1751243934001,0.26520044,656.8,656.21,3.809]
[1751243935208,0.26520044,656.8,656.22,2.892]
[1751243942410,3.77552689,657.74,656.22,2.892]
[1751243942711,0.26499143,656.94,656.22,2.892]
[1751243942906,3.77552689,657.59,656.22,2.892]
[1751243943108,0.26498336,656.97,656.22,2.892]
[1751243943306,3.77552689,657.59,656.22,2.892]
[1751243943611,3.77552689,657.69,656.22,2.892]
[1751243944012,3.77552689,657.67,656.22,2.892]
[1751243944610,0.26496117,657.31,656.22,2.892]
[1751243945308,0.26496117,657.31,656.23,1.16055853]
[1751243945510,0.26496117,657.31,656.24,1.16055853]
[1751243945714,0.26496117,657.31,656.25,1.16055853]
[1751243945910,0.26496117,657.31,656.26,1.16055853]
[1751243946114,0.26496117,657.31,656.27,1.16055853]
[1751243946415,0.26496117,657.31,656.28,1.16055853]
[1751243946615,0.26496117,657.31,656.29,4.95655853]
[1751243946814,0.26496117,657.31,656.3,4.67455853]
[1751243947017,0.26496117,657.31,656.31,1.16055853]
[1751243947312,0.26496117,657.31,656.32,1.16055853]
[1751243947514,0.26496117,657.31,656.33,1.16055853]
[1751243947716,0.26496117,657.31,656.34,1.16055853]
[1751243948016,0.26496117,657.31,656.35,1.16055853]
[1751243948219,0.26496117,657.31,656.36,1.16055853]
[1751243948518,0.26496117,657.31,656.37,1.16055853]
[1751243948717,0.26496117,657.31,656.38,1.16055853]
[1751243949014,0.26496117,657.31,656.39,1.16055853]
[1751243949218,0.26496117,657.31,656.4,1.16055853]
[1751243949514,0.26496117,657.31,656.3,3.514]
[1751243949515,0.26496117,657.31,656.41,1.16055853]
[1751243949718,0.26496117,657.31,656.42,1.16055853]
[1751243949918,0.26496117,657.31,656.43,1.16055853]
[1751243950115,0.26496117,657.31,656.44,1.16055853]
[1751243950415,0.26496117,657.31,656.45,1.16055853]
[1751243950614,0.26496117,657.31,656.46,1.16055853]
[1751243950821,0.26496117,657.31,656.47,1.16055853]
[1751243951022,0.26496117,657.31,656.48,1.16055853]
[1751243951222,0.26496117,657.31,656.49,1.16055853]
[1751243951419,0.26496117,657.31,656.5,1.16055853]
[1751243951623,0.26496117,657.31,656.51,1.16055853]
[1751243951922,0.26496117,657.31,656.52,1.16055853]
[1751243952221,0.26496117,657.31,656.53,1.16055853]
[1751243952422,0.26496117,657.31,656.54,1.16055853]
[1751243952622,0.26496117,657.31,656.55,1.16055853]
[1751243952822,0.26496117,657.31,656.56,1.16055853]
[1751243953118,0.26496117,657.31,656.57,1.16055853]
[1751243953324,0.26496117,657.31,656.58,1.16055853]
[1751243953524,0.26496117,657.31,656.59,1.16055853]
[1751243953723,0.26496117,657.31,656.6,1.16055853]
[1751243954023,0.26496117,657.31,656.61,1.16055853]
[1751243954322,0.26496117,657.31,656.62,1.16055853]
[1751243954520,0.26496117,657.31,656.54,0.622]
[1751243954521,0.26496117,657.31,656.63,1.16055853]
[1751243954724,0.26496117,657.31,656.64,1.16055853]
[1751243954920,0.26496117,657.31,656.65,1.16055853]
[1751243955125,0.26496117,657.31,656.54,0.622]
[1751243955328,0.26496117,657.31,656.55,1.1546798]
[1751243955527,0.26496117,657.31,656.56,1.1546798]
[1751243955722,0.26496117,657.31,656.57,1.1546798]
[1751243956021,0.26496117,657.31,656.58,2.0476798]
[1751243956225,0.26496117,657.31,656.59,1.1546798]
[1751243956426,0.26496117,657.31,656.6,1.1546798]
[1751243956622,0.26496117,657.31,656.61,1.1546798]
[1751243956827,0.26496117,657.31,656.62,1.1546798]
[1751243957024,0.26496117,657.31,656.63,1.1546798]
[1751243957322,0.26496117,657.31,656.58,0.893]
[1751243957523,0.26496117,657.31,656.59,1.15448585]
[1751243957823,0.26496117,657.31,656.6,1.15448585]
[1751243958024,0.26496117,657.31,656.61,1.15448585]
[1751243958323,0.26496117,657.31,656.62,1.15448585]
[1751243958527,0.26496117,657.31,656.63,1.15448585]
[1751243958823,0.26496117,657.31,656.58,0.893]
[1751243959022,0.26496117,657.31,656.59,1.15436723]
[1751243959226,0.26496117,657.31,656.6,1.15436723]
[1751243959425,0.26496117,657.31,656.61,1.15436723]
[1751243959624,0.26496117,657.31,656.62,1.15436723]
[1751243959824,0.26496117,657.31,656.63,1.15436723]
[1751243960023,0.26496117,657.31,656.58,0.893]
[1751243960223,0.26496117,657.31,656.59,1.15445349]
[1751243960426,0.26496117,657.31,656.6,1.15445349]
[1751243960624,0.26496117,657.31,656.61,1.15445349]
[1751243960824,0.26496117,657.31,656.58,0.893]
[1751243961029,0.26496117,657.31,656.59,1.15427053]
[1751243961328,0.26496117,657.31,656.58,0.893]
[1751243961524,0.26496117,657.31,656.59,1.15437553]
[1751243961728,0.26496117,657.31,656.58,0.893]
[1751243974739,0.26496117,657.31,656.5,4.506]
[1751243974935,3.77552689,657.28,656.5,4.506]
[1751243975533,3.77552689,657.29,656.5,4.506]
[1751243975937,3.77552689,657.29,656.35,0.622]
[1751243976134,3.77552689,657.26,656.35,0.622]
[1751243976734,3.77552689,657.24,656.35,0.622]
[1751243977034,3.77552689,657.26,656.35,0.622]
[1751243977636,4.04048806,657.31,656.35,0.622]
[1751243978738,0.26496117,657.31,656.35,0.622]
[1751243980936,0.26496117,657.31,656.05,7.943]
[1751243984846,0.26496117,657.31,656.1,0.622]
[1751243992653,0.26496117,657.31,656.23,3.039]
[1751244001462,0.26496117,657.31,656.3,0.622]
[1751244003066,0.26496117,657.31,656.3,3.729]
[1751244006566,0.26496117,657.31,656.3,5.03]
[1751244008367,0.26496117,657.31,656.31,2.748]
[1751244012172,0.26496117,657.31,656.32,3.353]
[1751244013774,0.26496117,657.31,656.33,2.975]
[1751244016973,0.26496117,657.31,656.34,3.809]
[1751244025479,0.26496117,657.31,656.35,1.302]
[1751244032386,0.26496117,657.31,656.36,0.621]
[1751244034988,0.26496117,657.31,656.37,3.426]
[1751244042194,0.26496117,657.31,656.38,3.293]
[1751244042798,0.26496117,657.31,656.39,4.021]
[1751244048401,0.26496117,657.31,656.4,2.494]
[1751244051703,3.7586807,657.26,656.4,2.494]
[1751244052405,3.7586807,657.25,656.4,2.494]
[1751244052705,3.7586807,657.23,656.4,2.494]
[1751244053406,3.7586807,657.22,656.4,2.494]
[1751244054406,3.7586807,657.21,656.4,2.494]
[1751244054905,3.7586807,657.19,656.4,2.494]
[1751244055503,3.7586807,657.16,656.4,5.269]
[1751244056001,3.7586807,657.15,656.4,5.269]
[1751244057008,3.7586807,657.12,656.4,5.269]
[1751244057608,3.7586807,657.04,656.4,5.269]
[1751244058104,3.7586807,657.05,656.4,5.269]
[1751244058608,3.7586807,657.01,656.4,5.269]
[1751244059107,3.7586807,657.02,656.4,5.269]
[1751244059508,3.7586807,657.02,656.41,1.302]
[1751244059807,3.7586807,656.98,656.41,1.302]
[1751244060109,3.7586807,657.04,656.41,1.302]
[1751244061718,3.7586807,657.03,656.41,1.302]
[1751244062215,3.7586807,657.03,656.42,2.824]
[1751244062716,3.7586807,657.04,656.42,2.824]
[1751244063415,3.7586807,657.03,656.42,2.824]
[1751244063615,3.7586807,657.03,656.43,3.808]
[1751244063818,3.7586807,657.08,656.43,3.808]
[1751244064519,3.7586807,657.01,656.43,3.808]
[1751244065421,3.7586807,656.9,656.43,3.808]
[1751244066422,3.7586807,656.9,656.44,0.621]
[1751244066621,0.26496117,657.31,656.44,0.621]
[1751244066622,3.7586807,656.88,656.44,0.621]
[1751244067125,3.7586807,656.96,656.44,0.621]
[1751244067627,3.7586807,656.95,656.44,0.621]
[1751244069225,3.7586807,656.93,656.44,0.621]
[1751244069630,3.7586807,656.93,656.45,2.64]
[1751244070230,3.7586807,656.93,656.46,3.673]
[1751244071331,3.7586807,656.91,656.46,3.673]
[1751244071831,3.7586807,656.9,656.46,3.673]
[1751244072532,3.7586807,656.91,656.46,3.673]
[1751244073633,3.7586807,656.9,656.46,3.673]
[1751244075630,3.7586807,657.05,656.46,3.673]
[1751244076131,3.7586807,657.1,656.46,3.673]
[1751244076535,3.7586807,657.16,656.46,3.673]
[1751244076735,3.7586807,657.16,656.47,2.657]
[1751244077236,3.7586807,657.1,656.47,2.657]
[1751244079233,0.26496117,657.31,656.47,2.657]
[1751244079234,3.7586807,657.14,656.47,2.657]
[1751244079440,3.7586807,657.14,656.48,1.301]
[1751244079734,3.7586807,657.11,656.48,1.301]
[1751244081533,3.7586807,657.11,656.49,3.808]
[1751244084339,3.7586807,657.25,656.49,3.808]
[1751244085039,3.7586807,657.21,656.49,3.808]
[1751244085343,3.7586807,657.21,656.5,3.339]
[1751244085647,3.7586807,657.14,656.5,3.339]
[1751244086644,3.7586807,657.13,656.5,3.339]
[1751244089051,3.7586807,657.09,656.5,3.339]
[1751244090146,3.7586807,657.11,656.5,3.339]
[1751244092954,3.7586807,657.12,656.5,3.339]
[1751244094254,3.7586807,657.12,656.5,1.43368537]
[1751244094456,3.7586807,656.98,656.48,1.301]
[1751244095452,3.7586807,656.96,656.48,1.301]
[1751244096457,3.7586807,656.96,656.49,3.808]
[1751244097055,3.7586807,657.01,656.49,3.808]
[1751244097563,3.7586807,656.98,656.5,2.713]
[1751244098556,3.7586807,656.98,656.5,3.334]
[1751244098962,3.7586807,656.97,656.5,3.334]
[1751244099564,3.7586807,656.93,656.5,3.334]
[1751244100565,3.7586807,656.92,656.51,3.154]
[1751244101168,3.7586807,656.93,656.51,3.154]
[1751244102272,3.7586807,656.9,656.51,3.154]
[1751244104064,3.7586807,656.9,656.52,2.53]
[1751244104364,3.7586807,656.9,656.52,0.6661515]
[1751244105268,3.7586807,656.86,656.52,0.6661515]
[1751244106372,3.7586807,657.01,656.52,0.6661515]
[1751244106870,3.7586807,657.0,656.52,0.6661515]
[1751244109474,3.7586807,657.0,656.53,1.301]
[1751244110477,3.7586807,657.04,656.53,1.301]
[1751244112484,3.7586807,657.05,656.53,1.301]
[1751244113277,3.7586807,657.06,656.53,1.301]
[1751244113674,3.7586807,657.08,656.53,1.301]
[1751244115880,3.7586807,657.16,656.53,1.301]
[1751244116279,3.7586807,657.07,656.53,1.301]
[1751244116781,3.7586807,657.04,656.53,1.301]
[1751244117481,3.7586807,657.03,656.53,1.301]
[1751244120481,3.7586807,656.92,656.53,1.301]
[1751244120985,3.7586807,656.94,656.53,1.301]
[1751244121587,3.7586807,656.95,656.53,1.301]
[1751244122689,3.7586807,657.03,656.53,1.301]
[1751244123596,3.7586807,657.04,656.53,1.301]
[1751244126891,3.7586807,657.04,656.54,3.549]
[1751244127491,3.7586807,657.03,656.54,3.549]
[1751244127890,5.26215298,657.27,656.54,3.549]
[1751244128292,0.26496117,657.31,656.54,3.549]
[1751244131496,3.7586807,657.11,656.54,3.549]
[1751244132390,3.7586807,657.11,656.54,1.64382242]
[1751244132994,3.7586807,657.12,656.54,1.64382242]
[1751244133897,3.7586807,657.12,656.52,0.40469097]
[1751244134092,3.7586807,657.12,656.51,3.154]
[1751244135598,3.7586807,657.08,656.51,3.154]
[1751244136094,3.7586807,657.1,656.51,3.154]
[1751244136595,3.7586807,657.09,656.51,3.154]
[1751244137294,3.7586807,657.11,656.51,3.154]
[1751244137598,3.7586807,657.1,656.51,3.154]
[1751244138795,3.7586807,657.05,656.51,3.154]
[1751244139299,3.7586807,656.97,656.51,3.154]
[1751244140903,3.7586807,656.96,656.51,3.154]
[1751244142600,3.7586807,656.94,656.51,1.24837973]
[1751244142904,3.7586807,656.93,656.51,1.24837973]
[1751244144604,3.7586807,656.94,656.51,1.24837973]
[1751244144906,0.26513175,656.83,656.5,1.26575941]
[1751244155611,0.26513175,656.83,656.45,3.288]
[1751244156108,3.7586807,656.74,656.45,3.288]
[1751244156511,3.7586807,656.75,656.45,3.288]
[1751244160820,3.7586807,656.75,656.4,6.513]
[1751244161621,3.7586807,656.72,656.4,6.513]
[1751244162321,3.7586807,656.71,656.4,6.513]
[1751244162718,3.7586807,656.69,656.4,6.513]
[1751244163322,0.26513175,656.83,656.4,6.513]
[1751244164124,0.26513175,656.83,656.4,3.427]
[1751244165935,0.26513175,656.83,656.3,5.846]
[1751244166527,0.26513175,656.83,656.3,9.655]
[1751244169829,0.26513175,656.83,656.3,12.075]
[1751244180139,0.26513175,656.83,656.3,9.625]
[1751244180444,0.26513175,656.83,656.3,5.816]
[1751244188544,3.7586807,656.79,656.3,5.816]
[1751244189144,3.7586807,656.75,656.3,5.816]
[1751244189644,3.7586807,656.68,656.3,5.816]
[1751244189845,3.7586807,656.68,656.3,2.00373444]
[1751244190147,3.7586807,656.61,656.3,2.00373444]
[1751244190949,3.7586807,656.61,656.3,1.05066805]
[1751244191144,0.26513175,656.83,656.3,1.05066805]
[1751244191145,3.7586807,656.57,656.3,1.05066805]
[1751244191650,3.7586807,656.6,656.3,1.05066805]
[1751244192649,3.7586807,656.62,656.3,1.05066805]
[1751244193249,3.7586807,656.7,656.3,1.05066805]
[1751244193846,3.7586807,656.72,656.3,1.05066805]
[1751244194245,0.26513175,656.83,656.3,1.05066805]
[1751244194246,3.7586807,656.71,656.3,1.05066805]
[1751244194851,3.7586807,656.7,656.3,1.05066805]
[1751244195350,3.7586807,656.67,656.3,1.05066805]
[1751244195948,3.7586807,656.78,656.3,1.05066805]
[1751244196452,3.7586807,656.8,656.3,1.05066805]
[1751244196854,3.7586807,656.75,656.3,1.05066805]
[1751244197454,3.7586807,656.73,656.3,1.05066805]
[1751244198350,3.7586807,656.74,656.3,1.05066805]
[1751244199657,3.7586807,656.75,656.3,1.05066805]
[1751244199857,3.7586807,656.75,656.3,0.08753285]
[1751244200058,3.7586807,656.75,656.25,2.45]
[1751244200557,3.7586807,656.76,656.25,2.45]
[1751244202160,0.26513175,656.83,656.25,2.45]
[1751244203256,0.26513175,656.83,656.0,2.881]
[1751244205360,3.7586807,656.78,656.0,2.881]
[1751244206662,3.7586807,656.8,656.0,2.881]
[1751244207757,3.7586807,656.82,656.0,2.881]
[1751244208458,0.26513175,656.83,656.0,2.881]
[1751244223566,4.02381245,656.83,656.0,2.881]
[1751244224064,3.7586807,656.8,656.0,2.881]
[1751244224468,3.7586807,656.78,656.0,2.881]
[1751244225069,3.7586807,656.77,656.0,2.881]
[1751244225470,3.7586807,656.56,656.0,2.881]
[1751244226470,3.7586807,656.54,656.0,2.881]
[1751244226971,3.7586807,656.42,656.0,0.97408517]
[1751244227471,3.7586807,656.5,656.0,0.97408517]
[1751244228069,3.7586807,656.51,656.0,0.97408517]
[1751244228669,3.7586807,656.49,656.0,0.97408517]
[1751244229672,3.7586807,656.47,656.0,0.97408517]
[1751244230773,3.7586807,656.43,656.0,0.97408517]
[1751244231675,3.7586807,656.41,656.0,0.97408517]
[1751244232275,3.7586807,656.39,656.0,0.97408517]
[1751244235578,3.7586807,656.61,656.0,0.97408517]
[1751244236978,3.7586807,656.59,656.0,0.97408517]
[1751244237675,5.52728473,656.83,656.0,4.16708517]
[1751244237676,3.7586807,656.48,656.0,4.16708517]
[1751244238080,3.7586807,656.49,656.0,4.16708517]
[1751244238679,3.7586807,656.47,656.0,4.16708517]
[1751244239678,5.26215298,656.69,656.0,4.16708517]
[1751244240181,0.26513175,656.83,656.0,4.16708517]
[1751244244681,0.26513175,656.83,656.0,3.193]
[1751244249485,3.7586807,656.54,656.0,3.193]
[1751244249689,3.7586807,656.54,656.01,3.349]
[1751244250494,3.7586807,656.55,656.01,3.349]
[1751244252591,3.7586807,656.54,656.01,3.349]
[1751244253595,3.7586807,656.56,656.01,3.349]
[1751244254697,3.7586807,656.45,656.01,3.349]
[1751244255194,3.7586807,656.43,656.01,3.349]
[1751244255694,3.7586807,656.42,656.01,3.349]
[1751244256194,3.7586807,656.39,656.01,3.349]
[1751244258795,3.7586807,656.47,656.01,3.349]
[1751244259696,3.7586807,656.47,656.02,2.452]
[1751244261399,3.7586807,656.49,656.02,2.452]
[1751244263501,3.7586807,656.48,656.02,2.452]
[1751244264597,3.7586807,656.47,656.02,2.452]
[1751244265096,3.7586807,656.43,656.02,2.452]
[1751244266105,3.7586807,656.38,656.02,2.452]
[1751244268601,3.7586807,656.38,656.01,1.98693694]
[1751244268898,3.7586807,656.25,656.01,1.98693694]
[1751244271504,3.7586807,656.39,656.01,1.98693694]
[1751244272299,3.7586807,656.49,656.01,1.98693694]
[1751244275419,3.7586807,656.48,656.01,1.98693694]
[1751244280606,3.7586807,656.47,656.01,0.13542323]
[1751244281310,3.7586807,656.4,656.01,0.13542323]
[1751244282011,3.7586807,656.43,656.01,0.13542323]
[1751244282508,3.7586807,656.36,656.01,0.13542323]
[1751244283513,3.7586807,656.42,656.01,0.13542323]
[1751244285610,3.7586807,656.41,656.01,0.13542323]
[1751244289313,3.7586807,656.46,656.01,0.13542323]
[1751244289715,3.7586807,656.46,655.9,6.759]
[1751244291215,3.7586807,656.44,655.9,6.759]
[1751244291813,3.7586807,656.41,655.9,6.759]
[1751244293312,3.7586807,656.34,655.9,6.759]
[1751244293816,3.7586807,656.4,655.9,6.759]
[1751244294012,3.7586807,656.4,655.18,1.13868764]
[1751244294312,3.7586807,656.4,655.19,5.1095764]
[1751244294511,3.7586807,656.4,655.2,2.7765764]
[1751244294716,3.7586807,656.4,655.21,2.7765764]
[1751244294917,3.7586807,656.44,655.22,2.7765764]
[1751244295117,3.7586807,656.44,655.23,2.7765764]
[1751244295317,3.7586807,656.44,655.24,2.7765764]
[1751244295517,3.7586807,656.44,655.25,2.7765764]
[1751244295718,3.7586807,656.44,655.26,2.7765764]
[1751244295917,3.7586807,656.44,655.27,2.17139474]
[1751244296117,3.7586807,656.44,655.28,2.17139474]
[1751244296319,3.7586807,656.44,655.29,2.17139474]
[1751244296518,3.7586807,656.44,655.3,1.00059501]
[1751244296819,3.7586807,656.44,655.31,1.00059501]
[1751244297015,0.26513175,656.83,655.32,1.00059501]
[1751244297219,0.26513175,656.83,655.33,1.00059501]
[1751244297514,0.26513175,656.83,655.34,1.00059501]
[1751244297715,0.26513175,656.83,655.35,1.00059501]
[1751244297919,0.26513175,656.83,655.36,1.00059501]
[1751244298116,0.26513175,656.83,655.37,1.00059501]
[1751244298420,0.26513175,656.83,655.38,1.00059501]
[1751244298619,0.26513175,656.83,655.39,1.00030882]
[1751244298815,0.26513175,656.83,655.4,1.00030882]
[1751244299020,0.26513175,656.83,655.41,1.00030882]
[1751244299217,0.26513175,656.83,655.42,1.00030882]
[1751244299517,0.26513175,656.83,655.43,1.00030882]
[1751244299717,0.26513175,656.83,655.29,7.158]
[1751244299917,0.26513175,656.83,655.3,1.60513583]
[1751244300115,0.26513175,656.83,655.31,1.60513583]
[1751244300319,0.26513175,656.83,655.32,1.60513583]
[1751244300516,0.26513175,656.83,655.33,1.60513583]
[1751244300719,0.26513175,656.83,655.29,7.158]
[1751244300720,0.26513175,656.83,655.34,1.000188]
[1751244300916,0.26513175,656.83,655.35,1.000188]
[1751244301517,0.26513175,656.83,655.29,7.158]
[1751244301819,0.26513175,656.83,655.3,0.60498906]
[1751244302018,0.26513175,656.83,655.31,0.60498906]
[1751244302217,0.26513175,656.83,655.32,0.60498906]
[1751244302418,0.26513175,656.83,655.33,0.60498906]
[1751244302620,0.26513175,656.83,655.34,0.60498906]
[1751244302819,0.26513175,656.83,655.35,0.60498906]
[1751244303021,0.26513175,656.83,655.36,0.60498906]
[1751244303221,0.26513175,656.83,655.37,0.60498906]
[1751244303420,0.26513175,656.83,655.38,0.60498906]
[1751244303621,0.26513175,656.83,655.39,0.60498906]
[1751244303822,0.26513175,656.83,655.4,0.60498906]
[1751244304025,0.26513175,656.83,655.41,0.60498906]
[1751244304225,0.26513175,656.83,655.42,0.60498906]
[1751244304423,0.26513175,656.83,655.43,0.60498906]
[1751244304625,0.26513175,656.83,655.29,7.158]
[1751244304823,0.26513175,656.83,655.3,0.60508735]
[1751244305122,0.26513175,656.83,655.31,0.60508735]
[1751244305323,0.26513175,656.83,655.32,0.60508735]
[1751244305526,0.26513175,656.83,655.33,0.60508735]
[1751244305822,0.26513175,656.83,655.34,0.60508735]
[1751244306023,0.26513175,656.83,655.35,0.60508735]
[1751244306323,0.26513175,656.83,655.36,0.60508735]
[1751244306523,0.26513175,656.83,655.37,1.60542642]
[1751244306727,0.26513175,656.83,655.38,1.60542642]
[1751244306924,3.80214842,656.48,655.39,1.77560867]
[1751244307125,3.80214842,656.48,655.4,2.77594774]
[1751244307324,3.80214842,656.48,655.41,2.77594774]
[1751244307524,3.80214842,656.48,655.42,2.77594774]
[1751244307724,3.80214842,656.48,655.43,2.77594774]
[1751244308026,3.80214842,656.48,655.44,2.77594774]
[1751244308228,3.80214842,656.48,655.45,2.17086039]
[1751244308428,3.80214842,656.47,655.46,2.17086039]
[1751244308725,3.80214842,656.47,655.47,2.17086039]
[1751244309031,3.80214842,656.47,655.48,2.17086039]
[1751244309229,3.80214842,656.47,655.49,2.17136542]
[1751244309428,3.80214842,656.47,655.5,1.00033907]
[1751244309624,3.80214842,656.47,655.51,1.00033907]
[1751244309923,3.80214842,656.47,655.52,1.00033907]
[1751244310128,3.80214842,656.47,655.29,8.29748367]
[1751244310425,3.80214842,656.47,655.3,2.76168254]
[1751244310626,3.80214842,656.47,655.31,2.76168254]
[1751244310827,3.80214842,656.47,655.32,2.76168254]
[1751244311026,3.80214842,656.46,655.33,2.76168254]
[1751244311327,3.80214842,656.46,655.34,2.76168254]
[1751244311524,3.80214842,656.46,655.35,2.76168254]
[1751244311724,3.80214842,656.46,655.36,2.76168254]
[1751244311930,3.80214842,656.46,655.37,2.76168254]
[1751244312130,3.80214842,656.55,655.38,2.76168254]
[1751244312426,3.80214842,656.55,655.39,2.76168254]
[1751244312629,3.80214842,656.55,655.4,2.76168254]
[1751244312829,3.80214842,656.55,655.41,2.76168254]
[1751244313026,3.80214842,656.55,655.42,2.76168254]
[1751244313226,3.80214842,656.55,655.43,2.76168254]
[1751244313430,3.80214842,656.65,655.44,2.76168254]
[1751244313725,3.80214842,656.65,655.45,2.76168254]
[1751244313924,3.80214842,656.65,655.46,2.76168254]
[1751244314128,3.80214842,656.65,655.47,2.76168254]
[1751244314427,3.80214842,656.66,655.48,4.65715035]
[1751244314627,3.80214842,656.66,655.49,2.15615035]
[1751244314826,3.80214842,656.66,655.5,2.15615035]
[1751244315028,3.80214842,656.66,655.51,2.15615035]
[1751244315228,3.80214842,656.66,655.52,2.15615035]
[1751244315531,3.80214842,656.67,655.53,1.17098994]
[1751244315827,3.80214842,656.67,655.54,1.17098994]
[1751244316027,3.80214842,656.65,655.55,1.17098994]
[1751244316227,3.80214842,656.65,655.56,1.17098994]
[1751244316427,3.80214842,656.65,655.53,2.717]
[1751244316428,3.80214842,656.65,655.57,1.17098994]
[1751244316626,3.80214842,656.65,655.53,2.717]
[1751244316828,3.80214842,656.65,655.54,1.16962523]
[1751244317032,3.80214842,656.78,655.55,1.16962523]
[1751244317233,3.80214842,656.78,655.56,1.16962523]
[1751244317533,3.80214842,656.79,655.57,1.16962523]
[1751244317731,3.80214842,656.79,655.58,1.16962523]
[1751244317930,3.80214842,656.79,655.53,2.717]
[1751244317931,3.80214842,656.79,655.59,1.16962523]
[1751244318232,3.80214842,656.79,655.6,1.16962523]
[1751244318431,3.80214842,656.79,655.61,1.16962523]
[1751244318631,3.80214842,656.79,655.62,1.16962523]
[1751244318831,3.80214842,656.79,655.63,1.16962523]
[1751244319034,3.80214842,656.79,655.53,2.717]
[1751244319035,3.80214842,656.79,655.64,1.16962523]
[1751244319229,0.26513175,656.83,655.65,1.16962523]
[1751244319431,0.26513175,656.83,655.66,1.16962523]
[1751244319629,0.26513175,656.83,655.67,1.16962523]
[1751244319931,0.26513175,656.83,655.68,1.16962523]
[1751244320128,0.26513175,656.83,655.69,1.16962523]
[1751244320331,0.26513175,656.83,655.7,1.16962523]
[1751244320529,0.26513175,656.83,655.71,1.16962523]
[1751244320732,0.26513175,656.83,655.53,2.717]
[1751244320929,0.26513175,656.83,655.54,1.1686881]
[1751244321134,0.26513175,656.83,655.55,1.1686881]
[1751244321332,0.26513175,656.83,655.56,1.1686881]
[1751244321531,0.26513175,656.83,655.57,1.1686881]
[1751244321732,0.26513175,656.83,655.58,1.1686881]
[1751244321935,0.26513175,656.83,655.59,1.1686881]
[1751244322232,0.26513175,656.83,655.6,1.1686881]
[1751244322436,0.26513175,656.83,655.61,1.1686881]
[1751244322637,0.26513175,656.83,655.62,1.1686881]
[1751244322832,0.26513175,656.83,655.63,1.1686881]
[1751244323036,0.26513175,656.83,655.64,1.1686881]
[1751244323337,0.26513175,656.83,655.65,1.1686881]
[1751244323532,0.26513175,656.83,655.66,1.1686881]
[1751244323734,0.26513175,656.83,655.67,1.1686881]
[1751244323935,0.26513175,656.83,655.68,1.1686881]
[1751244324139,0.26513175,656.83,655.69,1.1686881]
[1751244324432,0.26513175,656.83,655.7,1.1686881]
[1751244324636,0.26513175,656.83,655.71,1.1686881]
[1751244324936,0.26513175,656.83,655.72,1.1686881]
[1751244325136,0.26513175,656.83,655.53,2.717]
[1751244325331,0.26513175,656.83,655.54,2.75612933]
[1751244325533,0.26513175,656.83,655.55,2.75612933]
[1751244325737,0.26513175,656.83,655.56,2.75612933]
[1751244325937,0.26513175,656.83,655.53,2.717]
[1751244325938,0.26513175,656.83,655.57,2.15159589]
[1751244326139,0.26513175,656.83,655.58,2.15159589]
[1751244326336,0.26513175,656.83,655.59,2.15159589]
[1751244326541,0.26513175,656.83,655.6,2.15159589]
[1751244326742,0.26513175,656.83,655.53,2.717]
[1751244326743,0.26513175,656.83,655.61,2.15159589]
[1751244327043,0.26513175,656.83,655.62,2.15159589]
[1751244327242,0.26513175,656.83,655.63,2.15159589]
[1751244327440,0.26513175,656.83,655.64,2.15159589]
[1751244327638,0.26513175,656.83,655.65,1.16810152]
[1751244327843,0.26513175,656.83,655.66,1.16810152]
[1751244328142,0.26513175,656.83,655.67,1.16810152]
[1751244328343,0.26513175,656.83,655.53,2.717]
[1751244328639,0.26513175,656.83,655.54,2.75489922]
[1751244328944,3.80214842,656.76,655.55,2.15068321]
[1751244329143,3.80214842,656.76,655.56,2.15068321]
[1751244329444,3.80214842,656.76,655.57,2.15068321]
[1751244329640,3.80214842,656.76,655.58,2.15068321]
[1751244329844,3.80214842,656.76,655.59,2.15068321]
[1751244330044,3.80214842,656.76,655.6,2.15068321]
[1751244330340,3.80214842,656.76,655.61,2.15068321]
[1751244330539,3.80214842,656.76,655.62,2.15068321]
[1751244330739,3.80214842,656.76,655.63,1.1677061]
[1751244330942,3.80214842,656.76,655.64,1.1677061]
[1751244331141,3.80214842,656.76,655.65,1.1677061]
[1751244331342,3.80214842,656.76,655.66,1.1677061]
[1751244331645,3.80214842,656.77,655.48,2.501]
[1751244331845,3.80214842,656.77,655.49,2.7551612]
[1751244332145,3.80214842,656.77,655.5,5.2011612]